fUSD/lending_fUSD_20260401
["ID","MTS","AMOUNT","RATE_DAILY","PERIOD"]
[419270025,1775075530461,-151.0,0.00042999,60]
[419270026,1775075530471,-500.0,0.00042999,30]
[419270027,1775075530480,-211.40802048,0.00042999,30]
[419270028,1775075530489,-500.0,0.00042999,60]
[419270029,1775075530498,-219.23011724,0.00042999,60]
[419270030,1775075530507,-500.0,0.00042999,64]
[419270031,1775075530517,-227.34163157,0.00042999,64]
[419270032,1775075530527,-154.44724995,0.00042999,30]
[419270033,1775075530536,-500.0,0.00042999,70]
[419270034,1775075530546,-235.75327194,0.00042999,70]
[419270035,1775075530555,-238.66159918,0.00042999,30]
[419270036,1775075530564,-244.476143,0.00042999,120]
[419270037,1775075530574,-500.0,0.00042999,120]
[419270038,1775075530583,-728813.26194557,0.00043,120]
[419270039,1775075530592,-152.57582301,0.00043,120]
[419270040,1775075530601,-538.12748369,0.00043,3]
[419270041,1775075530611,-1498.27945584,0.00043,120]
[419270042,1775075530621,-2284.25395794,0.00043,120]
[419270043,1775075530631,-165302.18770362,0.00043,30]
[419270044,1775075530641,-309.1889144,0.00043,14]
[419270045,1775075530651,-3151.52831408,0.00043,60]
[419270046,1775075530660,-150.0,0.00043,120]
[419270047,1775075530670,-3100.0,0.00043,120]
[419270048,1775075530679,-10000.0,0.00043,120]
[419270049,1775075530688,-380.0,0.00043,3]
[419270050,1775075530698,-214.0,0.00043,7]
[419270051,1775075530707,-295.27422685,0.00043,120]
[419270052,1775075530717,-6434.97832795,0.00043,120]
[419270053,1775075530726,-1811.30227245,0.00043,2]
[419270054,1775075530735,-766.37738254,0.00043,120]
[419270055,1775075530744,-16040.46839701,0.00043,120]
[419270056,1775075530753,-5970418.58811901,0.00043,120]
[419270057,1775075530764,-1000.0,0.00043,120]
[419270058,1775075530774,-1000.0,0.00043,120]
[419270059,1775075530784,-3200.0,0.00043,120]
[419270060,1775075530794,-361176.73912997,0.00043,2]
[419270061,1775075530805,-3561.6357977,0.00043,120]
[419270062,1775075530815,-5304.0,0.00043,120]
[419270063,1775075530824,-11651.0,0.00043,120]
[419270064,1775075530834,-500.0,0.00043,120]
[419270065,1775075530844,-3000.0,0.00043,120]
[419270066,1775075530853,-2252.90089546,0.00043,120]
[419270067,1775075530862,-20000.0,0.00043,30]
[419270068,1775075530871,-10000.0,0.00043,30]
[419270069,1775075530881,-2500.0,0.00043,120]
[419270070,1775075530891,-500.0,0.00043,120]
[419270071,1775075530902,-1002.59589747,0.00043,30]
[419270072,1775075530911,-182.66,0.00043007,2]
[419270073,1775075530920,-1500.0,0.00043013,120]
[419270074,1775075530930,-856.0,0.00043014,120]
[419270075,1775075530939,-1004.34,0.00043014,120]
[419270076,1775075530949,-1004.34,0.00043014,120]
[419270077,1775075530958,-150.0,0.00043067,120]
[419270078,1775075530967,-1378.5677,0.00043072,2]
[419270079,1775075530977,-5653.8813,0.00043076,2]
[419270080,1775075530987,-5653.8813,0.00043076,2]
[419270081,1775075530995,-8785.95328527,0.000431,120]
[419270082,1775075531005,-152.0,0.000431,120]
[419270083,1775075531014,-375.18045652,0.00043131,2]
[419270084,1775075531023,-156.99011647,0.00043134,2]
[419270085,1775075531032,-152.0,0.0004314,13]
[419270086,1775075531042,-150.0,0.00043165,120]
[419270087,1775075531051,-987.2,0.0004317,7]
[419270088,1775075531061,-250.0,0.00043182,105]
[419270089,1775075531070,-1466.83571392,0.00043193,120]
[419270090,1775075531080,-1368.23,0.000432,120]
[419270091,1775075531090,-5621.21232972,0.0004321,120]
[419270092,1775075531099,-5653.8813,0.00043227,2]
[419270093,1775075531108,-500.0,0.00043233,30]
[419270094,1775075531118,-150.0,0.00043263,120]
[419270095,1775075531127,-500.0,0.00043287,120]
[419270096,1775075531136,-500.0,0.00043287,120]
[419270097,1775075531146,-500.0,0.00043287,120]
[419270098,1775075531155,-500.0,0.00043287,120]
[419270099,1775075531164,-500.0,0.00043287,120]
[419270100,1775075531174,-184.90932698,0.00043287,120]
[419270101,1775075531183,-2000.0,0.00043287,120]
[419270102,1775075531193,-856.0,0.00043288,120]
[419270103,1775075531203,-550.0,0.00043288,10]
[419270104,1775075531213,-1074.27,0.00043288,120]
[419270105,1775075531222,-1004.34,0.00043288,120]
[419270106,1775075531232,-1004.34,0.00043288,120]
[419270107,1775075531241,-10000.0,0.000433,120]
[419270108,1775075531251,-306.0,0.000433,120]
[419270109,1775075531260,-161.0,0.0004333,16]
[419270110,1775075531269,-1337.5447453,0.00043333,14]
[419270111,1775075531279,-250.0,0.00043346,109]
[419270112,1775075531288,-150.0,0.00043361,120]
[419270113,1775075531297,-10000.0,0.000434,120]
[419270114,1775075531306,-156.99011647,0.00043408,2]
[419270115,1775075531316,-250.0,0.00043442,95]
[419270116,1775075531325,-119232.0734217,0.00043444,4]
[419270117,1775075531334,-151.0,0.0004345,60]
[419270118,1775075531344,-151.0,0.0004345,60]
[419270119,1775075531353,-150.0,0.00043459,120]
[419270120,1775075531362,-250.0,0.0004346,112]
[419270121,1775075531371,-400.0,0.0004347,3]
[419270122,1775075531382,-520.0,0.00043499,30]
[419270123,1775075531391,-200.0,0.00043499,30]
[419270124,1775075531400,-3000.0,0.00043499,30]
[419270125,1775075531410,-719.3559477,0.00043499,30]
[419270126,1775075531419,-500.0,0.00043499,30]
[419270127,1775075531428,-500.0,0.00043499,30]
[419270128,1775075531438,-200.0,0.00043499,30]
[419270129,1775075531448,-151.0,0.00043499,30]
[419270130,1775075531457,-1030.0,0.00043499,30]
[419270131,1775075531467,-6888.0,0.00043499,30]
[419270132,1775075531476,-539.24,0.00043499,35]
[419270133,1775075531486,-500.0,0.00043499,30]
[419270134,1775075531495,-200.0,0.00043499,35]
[419270135,1775075531505,-2258.00809214,0.00043499,35]
[419270136,1775075531513,-518.5,0.00043499,35]
[419270137,1775075531523,-500.0,0.00043499,35]
[419270138,1775075531533,-200.0,0.00043499,35]
[419270139,1775075531542,-156.587,0.00043499,35]
[419270140,1775075531552,-7142.856,0.00043499,35]
[419270141,1775075531562,-1068.11,0.00043499,35]
[419270142,1775075531571,-500.0,0.00043499,35]
[419270143,1775075531581,-200.0,0.00043499,40]
[419270144,1775075531590,-559.19188,0.00043499,40]
[419270145,1775075531600,-537.6845,0.00043499,40]
[419270146,1775075531609,-500.0,0.00043499,40]
[419270147,1775075531619,-200.0,0.00043499,40]
[419270148,1775075531628,-162.380719,0.00043499,40]
[419270149,1775075531638,-7407.141672,0.00043499,40]
[419270150,1775075531648,-1107.63007,0.00043499,40]
[419270151,1775075531658,-579.88197956,0.00043499,44]
[419270152,1775075531667,-500.0,0.00043499,40]
[419270153,1775075531677,-200.0,0.00043499,44]
[419270154,1775075531686,-557.5788265,0.00043499,44]
[419270155,1775075531696,-500.0,0.00043499,44]
[419270156,1775075531706,-200.0,0.00043499,44]
[419270157,1775075531715,-168.3888056,0.00043499,44]
[419270158,1775075531726,-7681.20591386,0.00043499,44]
[419270159,1775075531736,-1148.61238259,0.00043499,44]
[419270160,1775075531745,-500.0,0.00043499,44]
[419270161,1775075531755,-601.3376128,0.00043499,45]
[419270162,1775075531765,-200.0,0.00043499,45]
[419270163,1775075531774,-200.0,0.00043499,45]
[419270164,1775075531784,-500.0,0.00043499,45]
[419270165,1775075531793,-174.61919141,0.00043499,45]
[419270166,1775075531802,-7965.41053268,0.00043499,45]
[419270167,1775075531811,-1191.11104075,0.00043499,45]
[419270168,1775075531822,-751.41868334,0.00043499,50]
[419270169,1775075531831,-500.0,0.00043499,45]
[419270170,1775075531841,-200.0,0.00043499,50]
[419270171,1775075531851,-200.0,0.00043499,50]
[419270172,1775075531860,-500.0,0.00043499,50]
[419270173,1775075531870,-181.08010149,0.00043499,50]
[419270174,1775075531879,-8260.13072239,0.00043499,50]
[419270175,1775075531888,-1235.18214925,0.00043499,50]
[419270176,1775075531898,-500.0,0.00043499,50]
[419270177,1775075531907,-151.0,0.00043499,30]
[419270178,1775075531917,-151.0,0.00043499,35]
[419270179,1775075531927,-151.0,0.00043499,40]
[419270180,1775075531937,-151.0,0.00043499,30]
[419270181,1775075531947,-151.0,0.00043499,44]
[419270182,1775075531957,-156.587,0.00043499,35]
[419270183,1775075531978,-151.0,0.00043499,30]
[419270184,1775075531988,-500.0,0.00043499,30]
[419270185,1775075531997,-151.0,0.00043499,45]
[419270186,1775075532007,-500.0,0.00043499,30]
[419270187,1775075532017,-151.0,0.00043499,30]
[419270188,1775075532026,-220.0,0.00043499,30]
[419270189,1775075532036,-162.380719,0.00043499,40]
[419270190,1775075532046,-500.0,0.00043499,35]
[419270191,1775075532055,-500.0,0.00043499,30]
[419270192,1775075532065,-151.0,0.00043499,50]
[419270193,1775075532075,-500.0,0.00043499,35]
[419270194,1775075532084,-151.0,0.00043499,35]
[419270195,1775075532094,-168.3888056,0.00043499,44]
[419270196,1775075532104,-220.0,0.00043499,35]
[419270197,1775075532114,-500.0,0.00043499,35]
[419270198,1775075532123,-500.0,0.00043499,40]
[419270199,1775075532133,-500.0,0.00043499,40]
[419270200,1775075532142,-151.0,0.00043499,40]
[419270201,1775075532152,-151.0,0.00043499,30]
[419270202,1775075532162,-309.98111957,0.00043499,40]
[419270203,1775075532171,-174.61919141,0.00043499,45]
[419270204,1775075532181,-500.0,0.00043499,44]
[419270205,1775075532190,-500.0,0.00043499,44]
[419270206,1775075532200,-151.0,0.00043499,44]
[419270207,1775075532210,-151.0,0.00043499,35]
[419270208,1775075532219,-500.0,0.00043499,40]
[419270209,1775075532230,-500.0,0.00043499,45]
[419270210,1775075532239,-500.0,0.00043499,45]
[419270211,1775075532249,-151.0,0.00043499,45]
[419270212,1775075532258,-151.0,0.00043499,40]
[419270213,1775075532268,-835.63649903,0.00043499,30]
[419270214,1775075532277,-500.0,0.00043499,44]
[419270215,1775075532287,-316.75015131,0.00043499,50]
[419270216,1775075532296,-500.0,0.00043499,50]
[419270217,1775075532306,-500.0,0.00043499,50]
[419270218,1775075532316,-151.0,0.00043499,50]
[419270219,1775075532325,-218.40321003,0.00043499,44]
[419270220,1775075532334,-500.0,0.00043499,45]
[419270221,1775075532344,-500.0,0.00043499,50]
[419270222,1775075532353,-160.0,0.00043499,30]
[419270223,1775075532363,-500.0,0.00043499,30]
[419270224,1775075532372,-160.0,0.00043499,35]
[419270225,1775075532381,-2000.0,0.00043499,30]
[419270226,1775075532391,-160.0,0.00043499,40]
[419270227,1775075532401,-500.0,0.00043499,30]
[419270228,1775075532410,-2043.95937522,0.00043499,35]
[419270229,1775075532420,-160.0,0.00043499,44]
[419270230,1775075532429,-500.0,0.00043499,35]
[419270231,1775075532439,-160.65067359,0.00043499,45]
[419270232,1775075532449,-151.0,0.00043499,35]
[419270233,1775075532459,-500.0,0.00043499,40]
[419270234,1775075532469,-151.0,0.00043499,40]
[419270235,1775075532479,-500.0,0.00043499,44]
[419270236,1775075532488,-151.0,0.00043499,44]
[419270237,1775075532498,-500.0,0.00043499,45]
[419270238,1775075532508,-250.0,0.00043499,30]
[419270239,1775075532518,-151.0,0.00043499,45]
[419270240,1775075532527,-500.0,0.00043499,50]
[419270241,1775075532537,-250.0,0.00043499,35]
[419270242,1775075532547,-151.0,0.00043499,50]
[419270243,1775075532556,-250.0,0.00043499,40]
[419270244,1775075532565,-151.0,0.00043499,30]
[419270245,1775075532576,-1639.26254045,0.00043499,30]
[419270246,1775075532586,-250.0,0.00043499,44]
[419270247,1775075532596,-156.587,0.00043499,35]
[419270248,1775075532606,-250.0,0.00043499,45]
[419270249,1775075532616,-162.380719,0.00043499,40]
[419270250,1775075532626,-250.0,0.00043499,50]
[419270251,1775075532636,-168.3888056,0.00043499,44]
[419270252,1775075532649,-500.0,0.00043499,30]
[419270253,1775075532658,-518.5,0.00043499,35]
[419270254,1775075532669,-1000.0,0.00043499,30]
[419270255,1775075532678,-537.68450001,0.00043499,40]
[419270256,1775075532689,-2486.0,0.00043499,30]
[419270257,1775075532698,-2486.0,0.00043499,35]
[419270258,1775075532709,-2486.0,0.00043499,40]
[419270259,1775075532719,-151.0,0.00043499,30]
[419270260,1775075532729,-2486.0,0.00043499,44]
[419270261,1775075532740,-620.0,0.00043499,30]
[419270262,1775075532751,-151.0,0.00043499,35]
[419270263,1775075532760,-151.0,0.00043499,30]
[419270264,1775075532769,-200.0,0.00043499,30]
[419270265,1775075532778,-2486.0,0.00043499,45]
[419270266,1775075532788,-642.94,0.00043499,35]
[419270267,1775075532797,-151.0,0.00043499,40]
[419270268,1775075532807,-151.0,0.00043499,35]
[419270269,1775075532818,-200.0,0.00043499,35]
[419270270,1775075532828,-251.0,0.00043499,30]
[419270271,1775075532837,-666.72878,0.00043499,40]
[419270272,1775075532846,-2486.0,0.00043499,50]
[419270273,1775075532855,-200.0,0.00043499,40]
[419270274,1775075532864,-691.39774486,0.00043499,44]
[419270275,1775075532874,-260.287,0.00043499,35]
[419270276,1775075532883,-200.0,0.00043499,44]
[419270277,1775075532892,-716.97946142,0.00043499,45]
[419270278,1775075532902,-269.917619,0.00043499,40]
[419270279,1775075532911,-151.0,0.00043499,44]
[419270280,1775075532921,-200.0,0.00043499,45]
[419270281,1775075532930,-151.0,0.00043499,45]
[419270282,1775075532939,-200.0,0.00043499,50]
[419270283,1775075532949,-151.0,0.00043499,50]
[419270284,1775075532958,-170.0,0.00043499,30]
[419270285,1775075532966,-500.0,0.00043499,30]
[419270286,1775075532975,-176.29,0.00043499,35]
[419270287,1775075532984,-500.0,0.00043499,35]
[419270288,1775075532994,-182.81273,0.00043499,40]
[419270289,1775075533003,-151.0,0.00043499,30]
[419270290,1775075533012,-500.0,0.00043499,40]
[419270291,1775075533022,-189.57680101,0.00043499,44]
[419270292,1775075533032,-500.0,0.00043499,44]
[419270293,1775075533042,-151.0,0.00043499,35]
[419270294,1775075533052,-151.0,0.00043499,30]
[419270295,1775075533061,-500.0,0.00043499,45]
[419270296,1775075533071,-196.59114265,0.00043499,45]
[419270297,1775075533081,-151.0,0.00043499,40]
[419270298,1775075533090,-156.587,0.00043499,35]
[419270299,1775075533100,-500.0,0.00043499,50]
[419270300,1775075533110,-203.86501493,0.00043499,50]
[419270301,1775075533120,-162.380719,0.00043499,40]
[419270302,1775075533130,-151.0,0.00043499,44]
[419270303,1775075533140,-168.3888056,0.00043499,44]
[419270304,1775075533150,-151.0,0.00043499,45]
[419270305,1775075533160,-174.61919141,0.00043499,45]
[419270306,1775075533170,-151.0,0.00043499,50]
[419270307,1775075533179,-181.08010149,0.00043499,50]
[419270308,1775075533189,-7303337.24263702,0.000435,120]
[419270309,1775075533199,-1436022.41018361,0.000435,120]
[419270310,1775075533209,-105715.54450723,0.000435,50]
[419270311,1775075533219,-500.84452763,0.000435,120]
[419270312,1775075533230,-951.90353501,0.000435,30]
[419270313,1775075533241,-150.0,0.000435,120]
[419270314,1775075533251,-153.0,0.000435,120]
[419270315,1775075533262,-500.0,0.000435,120]
[419270316,1775075533272,-3047.69366287,0.000435,30]
[419270317,1775075533283,-1739.22347253,0.000435,30]
[419270318,1775075533293,-300.0,0.000435,120]
[419270319,1775075533303,-150.0,0.000435,120]
[419270320,1775075533313,-2500.0,0.000435,120]
[419270321,1775075533323,-500.0,0.000435,120]
[419270322,1775075533333,-500.0,0.00043507,30]
[419270323,1775075533343,-622.03451323,0.00043523,30]
[419270324,1775075533352,-489.0,0.00043528,120]
[419270325,1775075533362,-250.0,0.0004354,114]
[419270326,1775075533373,-150.0,0.00043556,120]
[419270327,1775075533383,-2500.0,0.00043561,120]
[419270328,1775075533392,-856.0,0.00043562,120]
[419270329,1775075533402,-1004.34,0.00043562,120]
[419270330,1775075533412,-1004.34,0.00043562,120]
[419270331,1775075533423,-1096.6,0.00043563,30]
[419270332,1775075533613,-622.03451323,0.0004357,30]
[419270333,1775075533623,-489.0,0.00043584,120]
[419270334,1775075533633,-250.0,0.00043597,116]
[419270335,1775075533643,-500.0,0.00043599,120]
[419270336,1775075533654,-500.0,0.00043599,120]
[419270337,1775075533664,-50000.0,0.000436,30]
[419270338,1775075533674,-200.0,0.000436,18]
[419270339,1775075533684,-622.03451323,0.00043617,30]
[419270340,1775075533694,-426.53,0.00043634,120]
[419270341,1775075533704,-498.01,0.00043634,120]
[419270342,1775075533714,-250.0,0.00043636,117]
[419270343,1775075533723,-489.0,0.0004364,120]
[419270344,1775075533734,-616.12,0.00043649,120]
[419270345,1775075533744,-146191.0,0.0004365,60]
[419270346,1775075533755,-150.0,0.00043654,120]
[419270347,1775075533765,-250.0,0.00043663,118]
[419270348,1775075533775,-622.03451323,0.00043665,30]
[419270349,1775075533785,-156.99011647,0.00043682,2]
[419270350,1775075533795,-250.0,0.00043683,118]
[419270351,1775075533805,-250.0,0.00043696,119]
[419270352,1775075533814,-489.0,0.00043696,120]
[419270353,1775075533824,-3148.53812577,0.000437,120]
[419270354,1775075533834,-868.24358161,0.000437,120]
[419270355,1775075533844,-4464.99193245,0.000437,120]
[419270356,1775075533854,-250.0,0.00043705,119]
[419270357,1775075533863,-250.0,0.00043712,119]
[419270358,1775075533873,-622.03451323,0.00043712,30]
[419270359,1775075533883,-250.0,0.00043717,120]
[419270360,1775075533893,-250.0,0.0004372,120]
[419270361,1775075533903,-250.0,0.00043722,120]
[419270362,1775075533913,-250.0,0.00043724,120]
[419270363,1775075533922,-250.0,0.00043725,120]
[419270364,1775075533932,-250.0,0.00043725,120]
[419270365,1775075533943,-250.0,0.00043726,120]
[419270366,1775075533952,-250.0,0.00043726,120]
[419270367,1775075533962,-250.0,0.00043726,120]
[419270368,1775075533972,-250.0,0.00043726,120]
[419270369,1775075533982,-250.0,0.00043726,120]
[419270370,1775075533991,-250.0,0.00043726,120]
[419270371,1775075534000,-250.0,0.00043726,120]
[419270372,1775075534010,-250.0,0.00043726,120]
[419270373,1775075534020,-250.0,0.00043726,120]
[419270374,1775075534030,-250.0,0.00043726,120]
[419270375,1775075534039,-250.0,0.00043726,120]
[419270376,1775075534049,-250.0,0.00043726,120]
[419270377,1775075534058,-250.0,0.00043726,120]
[419270378,1775075534068,-250.0,0.00043726,120]
[419270379,1775075534078,-250.0,0.00043726,120]
[419270380,1775075534088,-250.0,0.00043726,120]
[419270381,1775075534097,-250.0,0.00043726,120]
[419270382,1775075534106,-250.0,0.00043726,120]
[419270383,1775075534115,-250.0,0.00043726,120]
[419270384,1775075534125,-250.0,0.00043726,120]
[419270385,1775075534134,-250.0,0.00043726,120]
[419270386,1775075534144,-250.0,0.00043726,120]
[419270387,1775075534154,-250.0,0.00043726,120]
[419270388,1775075534163,-250.0,0.00043726,120]
[419270389,1775075534173,-250.0,0.00043726,120]
[419270390,1775075534183,-250.0,0.00043726,120]
[419270391,1775075534192,-250.0,0.00043726,120]
[419270392,1775075534202,-151.0,0.00043734,2]
[419270393,1775075534212,-182.66,0.00043744,2]
[419270394,1775075534221,-489.0,0.00043752,120]
[419270395,1775075534231,-150.0,0.00043752,120]
[419270396,1775075534241,-622.03451323,0.00043759,30]
[419270397,1775075534251,-320.808874,0.00043779,120]
[419270398,1775075534260,-1381.50010067,0.00043792,120]
[419270399,1775075534270,-979.47232563,0.000438,120]
[419270400,1775075534280,-537.31168016,0.000438,120]
[419270401,1775075534291,-511.55829398,0.000438,30]
[419270402,1775075534300,-1218.18073993,0.000438,30]
[419270403,1775075534311,-1000.0,0.000438,120]
[419270404,1775075534322,-56874.1589,0.000438,120]
[419270405,1775075534331,-622.03451323,0.00043807,30]
[419270406,1775075534341,-489.0,0.00043808,120]
[419270407,1775075534351,-956.76923077,0.00043808,120]
[419270408,1775075534362,-1880.76923077,0.00043808,120]
[419270409,1775075534373,-2122.61538462,0.00043808,120]
[419270410,1775075534383,-2138.76923077,0.00043808,120]
[419270411,1775075534393,-2062.61538462,0.00043808,120]
[419270412,1775075534402,-1818.46153846,0.00043808,120]
[419270413,1775075534411,-969.69230769,0.00043808,120]
[419270414,1775075534426,-1179.69230769,0.00043808,120]
[419270415,1775075534436,-1952.76923077,0.00043808,120]
[419270416,1775075534446,-2227.38461538,0.00043808,120]
[419270417,1775075534455,-1305.23076923,0.00043808,120]
[419270418,1775075534464,-1362.0,0.00043808,120]
[419270419,1775075534474,-1194.92307692,0.00043808,120]
[419270420,1775075534484,-1224.0,0.00043808,120]
[419270421,1775075534493,-997.38461538,0.00043808,120]
[419270422,1775075534504,-1308.46153846,0.00043808,120]
[419270423,1775075534513,-2115.23076923,0.00043808,120]
[419270424,1775075534523,-964.61538462,0.00043808,120]
[419270425,1775075534533,-1658.30769231,0.00043808,120]
[419270426,1775075534542,-1480.15384615,0.00043808,120]
[419270427,1775075534552,-853.52913682,0.00043808,120]
[419270428,1775075534561,-262.62434979,0.00043808,120]
[419270429,1775075534570,-306.39507475,0.00043808,120]
[419270430,1775075534580,-264.98634747,0.00043808,120]
[419270431,1775075534591,-300.0,0.00043808,120]
[419270432,1775075534600,-300.0,0.00043808,120]
[419270433,1775075534610,-300.0,0.00043808,120]
[419270434,1775075534620,-300.0,0.00043808,120]
[419270435,1775075534630,-300.0,0.00043808,120]
[419270436,1775075534641,-300.0,0.00043808,120]
[419270437,1775075534650,-300.0,0.00043808,120]
[419270438,1775075534661,-300.0,0.00043808,120]
[419270439,1775075534671,-300.0,0.00043808,120]
[419270440,1775075534682,-300.0,0.00043808,120]
[419270441,1775075534692,-300.0,0.00043808,120]
[419270442,1775075534703,-300.0,0.00043808,120]
[419270443,1775075534712,-300.0,0.00043808,120]
[419270444,1775075534722,-300.0,0.00043808,120]
[419270445,1775075534732,-300.0,0.00043808,120]
[419270446,1775075534742,-300.0,0.00043808,120]
[419270447,1775075534752,-300.0,0.00043808,120]
[419270448,1775075534761,-300.0,0.00043808,120]
[419270449,1775075534777,-300.0,0.00043808,120]
[419270450,1775075534790,-300.0,0.00043808,120]
[419270451,1775075534801,-300.0,0.00043808,120]
[419270452,1775075534812,-300.0,0.00043808,120]
[419270453,1775075534823,-300.0,0.00043808,120]
[419270454,1775075534833,-300.0,0.00043808,120]
[419270455,1775075534844,-300.0,0.00043808,120]
[419270456,1775075534855,-300.0,0.00043808,120]
[419270457,1775075534868,-300.0,0.00043808,120]
[419270458,1775075534878,-300.0,0.00043808,120]
[419270459,1775075534889,-300.0,0.00043808,120]
[419270460,1775075534899,-300.0,0.00043808,120]
[419270461,1775075534910,-300.0,0.00043808,120]
[419270462,1775075534920,-300.0,0.00043808,120]
[419270463,1775075534930,-300.0,0.00043808,120]
[419270464,1775075534940,-300.0,0.00043808,120]
[419270465,1775075534950,-300.0,0.00043808,120]
[419270466,1775075534961,-300.0,0.00043808,120]
[419270467,1775075534972,-500.0,0.00043835,7]
[419270468,1775075534982,-500.0,0.00043835,7]
[419270469,1775075534992,-509.32626778,0.00043835,7]
[419270470,1775075535003,-500.0,0.00043835,30]
[419270471,1775075535013,-500.0,0.00043835,30]
[419270472,1775075535023,-281.51766077,0.00043835,30]
[419270473,1775075535033,-1000.0,0.00043835,2]
[419270474,1775075535043,-1000.0,0.00043835,2]
[419270475,1775075535053,-1000.0,0.00043835,2]
[419270476,1775075535063,-1000.0,0.00043835,2]
[419270477,1775075535073,-1000.0,0.00043835,2]
[419270478,1775075535084,-1000.0,0.00043835,2]
[419270479,1775075535095,-1000.0,0.00043835,2]
[419270480,1775075535106,-1000.0,0.00043835,2]
[419270481,1775075535116,-1005.3333821,0.00043835,2]
[419270482,1775075535126,-10143.98081171,0.00043835,2]
[419270483,1775075535136,-1000.0,0.00043835,2]
[419270484,1775075535147,-1004.77754751,0.00043835,2]
[419270485,1775075535157,-500.0,0.00043835,7]
[419270486,1775075535167,-500.0,0.00043835,7]
[419270487,1775075535177,-500.0,0.00043835,7]
[419270488,1775075535188,-345.21636208,0.00043835,7]
[419270489,1775075535198,-500.0,0.00043835,120]
[419270490,1775075535208,-500.0,0.00043835,120]
[419270491,1775075535218,-500.0,0.00043835,120]
[419270492,1775075535229,-500.0,0.00043835,120]
[419270493,1775075535239,-500.0,0.00043835,120]
[419270494,1775075535249,-497.49770464,0.00043835,120]
[419270495,1775075535258,-500.0,0.00043835,120]
[419270496,1775075535269,-500.0,0.00043835,120]
[419270497,1775075535280,-500.0,0.00043835,120]
[419270498,1775075535291,-500.0,0.00043835,120]
[419270499,1775075535301,-500.0,0.00043835,120]
[419270500,1775075535310,-500.0,0.00043835,120]
[419270501,1775075535320,-500.0,0.00043835,120]
[419270502,1775075535330,-500.0,0.00043835,120]
[419270503,1775075535339,-500.0,0.00043835,120]
[419270504,1775075535349,-500.0,0.00043835,120]
[419270505,1775075535359,-500.0,0.00043835,120]
[419270506,1775075535369,-500.0,0.00043835,120]
[419270507,1775075535379,-500.0,0.00043835,120]
[419270508,1775075535389,-500.0,0.00043835,120]
[419270509,1775075535400,-500.0,0.00043835,120]
[419270510,1775075535410,-500.0,0.00043835,120]
[419270511,1775075535422,-500.0,0.00043835,120]
[419270512,1775075535433,-500.0,0.00043835,120]
[419270513,1775075535443,-641.93,0.00043835,2]
[419270514,1775075535454,-641.93,0.00043835,2]
[419270515,1775075535463,-641.93,0.00043835,2]
[419270516,1775075535472,-641.93,0.00043835,2]
[419270517,1775075535483,-641.93,0.00043835,2]
[419270518,1775075535492,-641.93,0.00043835,2]
[419270519,1775075535501,-641.93,0.00043835,2]
[419270520,1775075535513,-641.93,0.00043835,2]
[419270521,1775075535524,-641.93,0.00043835,2]
[419270522,1775075535535,-641.93,0.00043835,2]
[419270523,1775075535544,-641.93,0.00043835,2]
[419270524,1775075535554,-641.93,0.00043835,2]